Cogmind - Beta 11.1 @@@ ROGUE MODE // 2022.11.09 @ 18:23:44 Player: smrw Result: Destroyed by G-34 Mercenary with Small Laser Performance ------------- Evolutions (0) 0 Regions Visited (1) 200 Robots Destroyed (11) 55 Value Destroyed (218) 218 Prototype IDs (0) 0 Alien Tech Used (0) 0 Bonus (0) 0 TOTAL SCORE: 473 Bonus ------- None Cogmind --------- Core Integrity 0/250 Matter 189/300 Energy 100/100 System Corruption 0% Temperature Cool (15) Movement Core (350) Ox6 Location -10/Materials Parts ------- > --- POWER (1) -------- (None) > --- PROPULSION (2) --- (None) > --- UTILITY (2) ------ Heat Sink Large Storage Unit > --- WEAPON (2) ------- (None) > --- INVENTORY (15) --- (None) Peak State ------------ > --- POWER ------------ Light Ion Engine > --- PROPULSION ------- Light Treads Light Treads > --- UTILITY ---------- Small Storage Unit > --- WEAPON ----------- EM Pulse Gun Small Laser > --- INVENTORY -------- Light Ion Engine [Rating: 6] Favorites ----------- Power Light Ion Engine Engine Light Ion Engine Propulsion Light Treads Treads Light Treads Utility Large Storage Unit Device Heat Sink Storage Large Storage Unit Weapon EM Pulse Gun Energy Gun EM Pulse Gun Launcher Grenade Launcher Build | -11 -10 ------- Run | Scr Mat Slots Evolved . | . . Power . | . . Propulsion . | . . Utility . | . . Weapon . | . . Parts Attached 12 | 7 5 Power 2 | 1 1 Engine 2 | 1 1 Core . | . . Reactor . | . . Propulsion 2 | 2 . Treads 2 | 2 . Leg . | . . Wheel . | . . Hover . | . . Flight . | . . Utility 3 | 1 2 Device 1 | . 1 Storage 2 | 1 1 Processor . | . . Hackware . | . . Protection . | . . Artifact . | . . Weapon 5 | 3 2 Energy Gun 4 | 3 1 Energy Cannon . | . . Ballistic Gun . | . . Ballistic Cannon . | . . Launcher 1 | . 1 Special Weapon . | . . Impact Weapon . | . . Slashing Weapon . | . . Piercing Weapon . | . . Special Melee Weapon . | . . Unidentified Prototypes . | . . Parts Lost 7 | . 7 Power 2 | . 2 Propulsion 2 | . 2 Utility . | . . Weapon 3 | . 3 Highest Loss Streak 6 | . 6 To Critical Strikes . | . . Average Slot Usage (%) 71 | . 71 Engine 9 | . 9 Treads 23 | . 23 Device 6 | . 6 Storage 13 | . 13 Energy Gun 13 | . 13 Launcher 4 | . 4 Naked Turns . | . . Heaviest Build 28 | 12 28 Greatest Support 40 | 40 40 Greatest Overweight (x) 7 | . 7 Average Overweight (x) . | . . Largest Inventory Capacity 15 | 8 15 Average Capacity 11 | 7 14 Most Carried 2 | 1 2 Average Carried 1 | . 1 Final Capacity 15 | 8 15 Final Carried 1 | 1 . Class Distribution -------------------- 100% | Mutant Dominant Class ---------------- Mutant | -10/Materials Resources | -11 -10 ----------- Run | Scr Mat Matter Collected 239 | 181 58 Remotely . | . . Salvage Created 284 | 92 192 Parts 20 | 3 17 Haulers Intercepted . | . . Recyclers Shooed . | . . Parts Field Recycled . | . . Retrieved Matter . | . . Parts Self-Destructed . | . . Prevented . | . . Kills | -11 -10 ------- Run | Scr Mat Combat Hostiles Destroyed 8 | . 8 Guns 1 | . 1 AOE 7 | . 7 Classes Destroyed 5 | 1 4 Worker 1 | . 1 Builder 1 | . 1 Recycler 1 | 1 . Swarmer 4 | . 4 Grunt 4 | . 4 Best Kill Streak 5 | 1 5 Combat Bots Only 4 | . 4 Max Kills in Single Turn 3 | 1 3 Gunslinging . | . . Exploded 2 | . 2 Melee . | . . Uniques/NPCs Destroyed . | . . Combat | -11 -10 -------- Run | Scr Mat Damage Taken 915 | . 915 Core 254 | . 254 Absorbed by Shields . | . . Core Remaining (%) 100 | 100 . Volleys Fired 21 | 3 18 Largest 2 | 2 2 Hottest 90 | 90 90 Shots Fired 29 | 6 23 Gun 22 | 6 16 Cannon . | . . Launcher 7 | . 7 Special . | . . Kinetic . | . . Thermal 14 | 3 11 Explosive 7 | . 7 Electromagnetic 8 | 3 5 Robot Hit Streak 5 | 3 5 Robot Miss Streak 3 | 1 3 Penetration Max . | . . Secondary Targets . | . . Shots Hit Robots 14 | 4 10 Core Hits 15 | 1 14 Critical Kills . | . . Critical Parts Destroyed . | . . Critical Strikes 2 | . 2 Burn 2 | . 2 Melee Attacks . | . . Impact . | . . Slashing . | . . Piercing . | . . Sneak Attacks . | . . Combat Hostiles . | . . Follow-up Attacks . | . . Damage Inflicted 649 | 53 596 Guns 198 | 53 145 Cannons . | . . Explosions 451 | . 451 Melee . | . . Ramming . | . . Kinetic . | . . Thermal 88 | 12 76 Explosive 451 | . 451 Electromagnetic 110 | 41 69 Impact . | . . Slashing . | . . Piercing . | . . Highest Corruption . | . . Average Corruption . | . . Corruption Purged . | . . Corruption Blocked . | . . Overload Shots . | . . Overflow Damage 2 | . 2 Projectiles . | . . Explosions 2 | . 2 Melee . | . . Knockbacks . | . . Impact . | . . Kinetic . | . . Secondary . | . . Self-Inflicted Damage 145 | . 145 Shots 4 | . 4 Rammed 1 | . 1 Targets Rammed 1 | . 1 Kicked . | . . Crushed . | . . Highest Temperature 90 | 90 30 Average Temperature 28 | 48 14 Received Heat Transfer 225 | . 225 Siege Activations . | . . Robots Corrupted . | . . Combat Hostiles . | . . Parts Fried . | . . Impact Corruptions . | . . Robots Melted . | . . Combat Hostiles . | . . Parts Melted . | . . Heat Transferred 407 | 37 370 Parts Sabotaged . | . . Parts Stolen . | . . Parts Stripped . | . . Power Chain Reactions . | . . Missiles Intercepted . | . . Alert | -11 -10 ------- Run | Scr Mat Peak Influence 294 | 5 294 Initial 3 | . 3 Average 90 | . 151 Maximum Alert Level 1 | . 1 Low Security (%) 76 | 100 60 Level 1 23 | . 39 Level 2 . | . . Level 3 . | . . Level 4 . | . . Level 5 . | . . High Security . | . . Max Security . | . . Squads Dispatched 1 | . 1 Investigation . | . . Extermination . | . . Reinforcement 1 | . 1 Assault . | . . Garrison . | . . Intercept . | . . Searches Triggered . | . . Construction Impeded . | . . Haulers Reinforced . | . . Active Scanning Responses . | . . Cargo Convoy Interrupts . | . . Stealth | -11 -10 --------- Run | Scr Mat Distress Signals . | . . Communications Jammed . | . . Distress Signals . | . . Times Spotted 12 | . 12 Peak Tracking Total 8 | . 8 Tactical Retreats 1 | . 1 Traps | -11 -10 ------- Run | Scr Mat Traps Triggered . | . . Indirectly . | . . Trap Hack Attempts . | . . Triggered . | . . Disarmed . | . . Reprogrammed . | . . Reused . | . . Traps Extracted . | . . Installed . | . . Triggered . | . . Machines | -11 -10 ---------- Run | Scr Mat Machines Disabled 3 | . 3 Max in Single Turn 2 | . 2 Machines Sabotaged . | . . Garrisons Compromised . | . . Overloaded Fab Kills . | . . Hacking | -11 -10 --------- Run | Scr Mat Machines Accessed . | . . Terminals . | . . Fabricators . | . . Repair Stations . | . . Recycling Units . | . . Scanalyzers . | . . Garrison Access . | . . Total Hacks . | . . Successful . | . . Failed . | . . Catastrophic . | . . Database Lockouts . | . . Manual . | . . Terminals . | . . Fabricators . | . . Repair Stations . | . . Recycling Units . | . . Scanalyzers . | . . Garrison Access . | . . Terminal Hacks . | . . Fabricator Hacks . | . . Repair Station Hacks . | . . Recycling Unit Hacks . | . . Scanalyzer . | . . Garrison Access Hacks . | . . Unauthorized Hacks . | . . Terminals . | . . Fabricators . | . . Repair Stations . | . . Recycling Units . | . . Scanalyzers . | . . Garrison Access . | . . Data Cores Recovered . | . . Used . | . . Hacking Detections . | . . Full Trace Events . | . . Feedback Events . | . . Feedback Blocked . | . . Robot Schematics Acquired . | . . Robots Built . | . . Authchips . | . . Time . | . . Total Robot Build Rating . | . . Part Schematics Acquired . | . . Parts Built . | . . Authchips . | . . Time . | . . Total Part Build Rating . | . . Parts Repaired . | . . Time . | . . Parts Recycled . | . . Recycled Matter . | . . Retrieved Matter . | . . Retrieved Components . | . . Parts Scanalyzed . | . . Part Schematics Acquired . | . . Parts Damaged . | . . Bothacking | -11 -10 ------------ Run | Scr Mat Used RIF Installer . | . . Robots Hacked . | . . Non-combat . | . . Combat . | . . Robot Hacks Applied . | . . Relay Couplers Released . | . . Fabnet Peak Effective % . | . . Robots Rewired . | . . Allies Hacked . | . . Hacks Repelled . | . . Allies | -11 -10 -------- Run | Scr Mat Total Allies . | . . Largest Group . | . . Highest-Rated Group . | . . Highest-Rated Ally . | . . Total Orders . | . . Ally Attacks . | . . Total Damage . | . . Kills . | . . Allies Corrupted . | . . Allies Melted . | . . Intel | -11 -10 ------- Run | Scr Mat Robot Analysis Total . | . . Derelict Logs Recovered . | . . Drone Launches . | . . Drone Recoveries . | . . Exploration | -11 -10 ------------- Run | Scr Mat Turns Passed 294 | 120 174 Spaces Moved 134 | 63 71 Core 5 | 1 4 Treads 129 | 62 67 Legs . | . . Wheels . | . . Hover . | . . Flight . | . . Fastest Speed 50 | 50 160 Average Speed 168 | 158 178 Slowest Speed 400 | 160 400 Overloaded Moves . | . . Propulsion Burnouts . | . . Robots Hopped . | . . Cave-ins Triggered . | . . Exploration Rate (%) 15 | 5 25 Regions Visited 1 Branch Regions . Pre-discovered Areas . | . . Known Exits Taken . | . . Unknown Exits Taken 1 | 1 . Scrap Searched . | . . Spaces Dug . | . . Terrain Destroyed 23 | . 23 Melee . | . . Projectile . | . . AOE 23 | . 23 Terrain Rammed . | . . Walls Destroyed . | . . Machines Disabled . | . . Actions | -11 -10 --------- Run | Scr Mat Total 171 | 74 97 Wait . | . . Move 133 | 62 71 Hop . | . . Pick Up 1 | 1 . Fast Attach 10 | 7 3 Attach 2 | . 2 Detach 1 | . 1 Swap . | . . Drop 2 | 1 1 Fire 21 | 3 18 Melee . | . . Ram . | . . Kick . | . . Crush 1 | . 1 Escape Stasis . | . . Rewire . | . . Trap . | . . Miscellaneous . | . . Route ------- -11/Scrapyard -10/Materials History --------- Turn | Location | Event 8 | -11/Scrapyard | Discovered new exit (range 14) 121 | -11/Scrapyard | Entered Materials 279 | -10/Materials | Core integrity fell below 50% 290 | -10/Materials | Core integrity fell below 20% 295 | -10/Materials | Destroyed by G-34 Mercenary with Small Laser Last Messages --------------- U-05 Engineer lays Concrete. U-05 Engineer builds a Wall. U-05 Engineer lays Concrete. Slammed into U-05 Engineer. U-05 Engineer lays Concrete. Lgt. Treads destroyed. U-05 Engineer builds a Wall. U-05 Engineer lays Concrete. U-05 Engineer builds a Wall. U-05 Engineer lays Concrete. S-10 Pest suffers critical hit (Burn). S-10 Pest destroyed. U-05 Engineer builds a Wall. U-05 Engineer lays Concrete. U-05 Engineer destroyed. Critical hit (Burn: +37). Lgt. Treads destroyed. Critical hit (Burn: +37). Med. Laser destroyed. Lgt. Ion Engine destroyed. Map ----- +----------------------------------------------------+ | ??? =%" %!#????????????????????????? | | ?? [ ????????????????????????? | | ?? ]] #????????????????????????? | | ?? ]] ????????????????????????? | | ?# ] * #????????????????????????? | | ?? ! #????????????????????????? | | ?????? #????????????????????????? | | ?????????? #????????????????????????? | | ?????????????# #????????????????????????? | | ?????????????## #????????????????????????? | | ?????????????# ##????????????????????????? | | ????????????### #######???????????????????? | | ????????????# #???????????????????? | | ????????????# #???????????????????? | | ????????????# #???????????????????? | | ????????????# #???????????????????? | | ????????????# """ """ #???????????????????? | | ????????????# "" #???????????????????? | | ????????????# "" = #???????????????????? | | ????????????# !% #???????????????????? | | ????????????######+####???????????????????? | | ??????##########=%%% #######+##???????????? | | ???? [*ggs #???????????? | | ???? [ #???????????? | | ???? # ] #?? | | ?????####### =!% @ ; k #?? | | ???????????# " "* ## #### # #?? | | ???????????# "Y" =# # #??######???? | | ???????????# """ + """ #? #???????????? | | ???????????/ # """ #?? #???????????? | | ???????????# + """ # #???????????? | | ???????????###+##+### # #???????????? | | ????????????????????# # +???????????? | | ????????????????????# # #???????????? | | ????????????????????#+##### #???????????? | | ???????????????????## ##### #???????????? | | ???????????????????# #???????????? | | ???????????????????# ##??????????? | | ???????????????????# T#??????????? | | ????????????#########+##### ##??????????? | | ????????????# # #???????????? | | ????????????# # #???????????? | | ????????????# """ """ """ # #####???????? | | ????????????# """ """ """ # #???????? | | ????????????? """ """ """ # #???????? | | ????????????# + #???????? | | ??????????????############## #???????? | | ???????????????????????????#! !#???????? | | ???????????????????????????#! ! !#???????? | | ???????????????????????????##!! !##???????? | +----------------------------------------------------+ Best States ------------- Heat Dissipation 35 Energy Generation 10 Energy Capacity 125 Matter Stores 219 Matter Capacity 300 Sight Range 16 Terrain Scan Density 10 Evasion (%) 40 Recoil Reduction 2 Item Schematics ----------------- None Robot Schematics ------------------ None Fabricated ------------ Nothing Alien Tech Used ----------------- None Achievements -------------- None Challenges ------------ None Game ------ Seed DiametricControlRailgun Manual? 0 Play Time 00:07:07 Cumulative 6.0 hours Start 2022.11.09 @ 18:18:26 End 2022.11.09 @ 18:23:44 Sessions 1 Manual Loads 0 Difficulty Rogue Special Mode None Game No. 7 Rogue 7 Adventurer 0 Explorer 0 Win Type - Total 0 Types 0/0/0/0/0/0/0/0/0 Lore% 5 Gallery% 11 Achievement% 11 Wizard Run 0 Options --------- ASCII 0 Keyboard 0 Movement Mouse Keybinds 0 Fullscreen 1 Font 24/Smallcaps Map View 76x50 Tactical HUD 0 Map Filters NONE Filters NONE Steam 1 RUN: 07442628-bfd3-45a1-ad85-7344b8c6ceb4